[Event "German Bundesliga 2022-23"]
[Site "Germany"]
[Date "2022.10.21"]
[Round "7.4"]
[White "Martinovic, Sasa"]
[Black "Stojanovic, Dalibor"]
[Result "1-0"]
[ECO "E14"]
[WhiteElo "2546"]
[BlackElo "2472"]
[Annotator "TA"]
[PlyCount "107"]
[EventDate "2022.10.21"]
[EventType "team-tourn"]
[EventCountry "GER"]
[SourceTitle "playchess.com"]
[Source "ChessBase"]
[SourceQuality "1"]
[TimeControl "40/6000+30:3000+30"]

{[%evp 16,107,30,34,60,39,44,34,40,10,11,8,35,36,36,25,35,27,32,27,27,10,18,11,30,10,12,12,38,42,39,17,23,26,27,22,43,22,22,23,49,49,50,50,53,47,53,54,52,29,64,69,77,75,73,62,70,73,88,77,77,75,147,143,153,158,137,120,162,159,159,155,368,379,291,301,628,624,614,616,591,542,746,736,868,862,764,773,1269,1292,4962,4850,5202,4858]} 1. d4 {[%emt 0:00:01]} Nf6 {[%emt 0:00:28]} 2. c4 {[%emt 0:00:05]} e6 {[%emt 0:01:26]} 3. Nf3 {[%emt 0:00:14]} Bb4+ {[%emt 0:01:55]} 4. Nbd2 {[%emt 0:00:07]} b6 {[%emt 0:01:01]} 5. a3 {[%emt 0:00:08]} Bxd2+ {[%emt 0:00:07]} 6. Nxd2 {[%emt 0:00:06]} d5 {[%emt 0:02:57]} 7. e3 {[%emt 0:01:00]} O-O {[%emt 0:01:11]} 8. Bd3 {[%emt 0:04:42]} Bb7 {[%emt 0:02:38]} 9. O-O {[%emt 0:00:59]} Nbd7 {[%emt 0:08:36] E14: Queen's Indian: Classical Variation (4 e3).} 10. b3 {[%emt 0:08:27] [#]} Re8 $146 {[%emt 0:05:05]} ({Predecessor:} 10... c5 11. Bb2 cxd4 12. exd4 Ne4 13. Re1 Ndf6 14. f3 Nxd2 15. Qxd2 Rc8 16. Rac1 dxc4 17. bxc4 {1-0 (38) Ahman,H-Heemsoth,H GER corr 1982}) 11. Bb2 {[%emt 0:01:12]} e5 {[%emt 0:06:44] White is slightly better.} 12. dxe5 {[%emt 0:11:58]} Nxe5 {[%emt 0:02:13]} 13. Be2 {[%emt 0:00:05]} dxc4 {[%emt 0:11:36]} 14. Nxc4 {[%emt 0:01:35]} Nxc4 {[%emt 0:00:20]} 15. Bxc4 {[%emt 0:07:09]} Qe7 {[%emt 0:06:29]} 16. Qc2 {[%emt 0:01:00]} Rad8 {[%emt 0:07:03]} 17. Rfd1 {[%emt 0:04:15]} Ne4 {[%emt 0:04:47]} 18. Rxd8 {[%emt 0:03:53]} Rxd8 {[%emt 0:00:55]} 19. Rd1 {[%emt 0:00:24] Against Rd2} h6 {[%emt 0:07:34]} 20. Bf1 {[%emt 0:21:25]} Rxd1 {[%emt 0:09:43]} 21. Qxd1 {[%emt 0:00:04]} Qh4 {[%emt 0:00:14]} 22. Qc2 {[%emt 0:07:48]} Qd8 {[%emt 0:01:09]} 23. b4 {[%emt 0:09:49]} Qd2 {[%emt 0:04:23]} 24. Qxd2 {[%emt 0:00:52]} Nxd2 $11 {[%emt 0:00:05][%mdl 4096] Endgame KBB-KBN} 25. Bd3 {[%emt 0:02:12]} Bd5 {[%emt 0:02:58]} 26. f3 {[%emt 0:02:30]} (26. Bc3 $5 {[%cal Rc3d2]} Ne4 27. Be5 $14) 26... Nc4 {[%emt 0:00:35]} 27. Bc1 {[%emt 0:00:46]} a5 {[%emt 0:02:12]} 28. e4 {[%emt 0:03:01]} Be6 {[%emt 0:00:14]} 29. bxa5 {[%emt 0:07:08]} bxa5 {[%emt 0:03:31]} 30. Kf2 {[%emt 0:00:50]} Kf8 {[%emt 0:02:49]} 31. Ke2 {[%emt 0:00:18]} Ke7 {[%emt 0:02:14]} 32. Bc2 {[%emt 0:01:22]} g5 {[%emt 0:02:35]} 33. Kd3 {[%emt 0:01:18]} f6 {[%emt 0:03:58]} 34. Kc3 {[%emt 0:01:35]} Ne5 {[%emt 0:02:54]} 35. Bd1 {[%emt 0:03:30]} Bf7 {[%emt 0:00:50]} 36. Be2 {[%emt 0:00:49]} c5 {[%emt 0:01:24]} 37. Be3 {[%emt 0:02:34]} Kd6 {[%emt 0:00:17]} 38. g3 {[%emt 0:02:12][%cal Bg2g3,Bg3f4][%mdl 32]} h5 {[%emt 0:02:59]} ({Black should play} 38... Bh5) 39. f4 $16 {[%emt 0:00:47]} gxf4 {[%emt 0:00:04]} 40. gxf4 {[%emt 0:00:23]} ({Don't take} 40. Bxf4 $6 Bg6 $14) 40... Nd7 {[%emt 0:00:47]} 41. Bb5 {[%emt 0:07:53] White is more active.} Nb6 {[%emt 0:10:52][%cal Of6f5]} 42. Bd2 {[%emt 0:05:38]} Ba2 {[%emt 0:16:51]} 43. Kd3 {[%emt 0:07:44]} f5 $2 {[%emt 0:15:24] [#] A mistake that costs the game.} (43... Bb1+ $16 44. Ke3 Ba2 45. Bxa5 Nc4+ 46. Bxc4 Bxc4) 44. e5+ $1 $18 {[%emt 0:16:47]} Ke6 {[%emt 0:00:04]} 45. Bxa5 {[%emt 0:00:15]} c4+ $2 {[%emt 0:00:04]} (45... Bb1+ 46. Kd2 Nd5) 46. Kd4 {[%emt 0:01:25] White is clearly winning.} Nd5 {[%emt 0:00:05]} 47. Bd2 {[%emt 0:01:33] This bishop pair is nice.} c3 {[%emt 0:00:04]} 48. Bc1 {[%emt 0:03:42]} Bb3 {[%emt 0:00:34]} 49. a4 {[%emt 0:01:07][%cal Ba3a4,Ba4a5,Ba5a6,Ba6a7][%mdl 32]} c2 {[%emt 0:00:05]} 50. a5 {[%emt 0:01:09]} Nc7 {[%emt 0:00:37]} 51. Bd3 {[%emt 0:00:54]} Nd5 {[%emt 0:00:34]} 52. a6 {[%emt 0:02:19]} Nb4 {[%emt 0:00:04]} 53. a7 {[%emt 0:00:57]} Bd5 {[%emt 0:00:04]} 54. Bc4 {[%emt 0:02:24] Weighted Error Value: White=0.06 (flawless) /Black=0.26 (precise)} 1-0

[Event "German Bundesliga 2022-23"]
[Site "Germany"]
[Date "2022.10.21"]
[Round "7.5"]
[White "Bogosavljevic, Boban"]
[Black "Prusikin, Michael"]
[Result "1/2-1/2"]
[ECO "D02"]
[WhiteElo "2533"]
[BlackElo "2517"]
[Annotator "TA"]
[PlyCount "140"]
[EventDate "2022.10.21"]
[EventType "team-tourn"]
[EventCountry "GER"]
[SourceTitle "playchess.com"]
[Source "ChessBase"]
[SourceQuality "1"]
[TimeControl "40/6000+30:3000+30"]

{[%evp 9,140,27,19,17,11,14,24,16,41,29,38,32,41,25,26,22,23,24,18,16,11,15,11,23,33,34,38,38,44,34,23,20,25,15,36,8,6,0,0,-19,-8,-14,-13,-30,0,0,0,0,12,12,35,23,27,24,27,20,27,32,41,8,8,8,9,8,12,8,15,8,9,0,18,3,12,19,16,0,22,19,19,0,0,0,0,0,0,0,11,4,18,0,0,0,0,0,0,0,0,0,0,0,0,0,0,0,0,-8,-8,-8,0,-8,-8,-8,0,0,0,0,0,0,0,0,0,0,0,-50,-51,-51,0,-64,-64,-72,-79,-101,-101]} 1. Nf3 {[%emt 0:00:06]} d5 {[%emt 0:00:06]} 2. g3 {[%emt 0:00:06]} Nd7 {[%emt 0:00:06]} 3. d4 {[%emt 0:01:42]} Nb6 {[%emt 0:00:09]} 4. Nc3 {[%emt 0:19:10]} Bf5 {[%emt 0:05:07]} 5. Nh4 {[%emt 0:00:23]} Bg4 {[%emt 0:00:42]} 6. h3 {[%emt 0:01:07] D02: 1 d4 d5 2 Nf3 sidelines, including 2...Nf6 3 g3 and 2...Nf6 3 Bf4.} Bh5 {[%emt 0:00:34]} 7. Ng2 {[%emt 0:00:27]} e6 {[%emt 0:11:17]} 8. Nf4 {[%emt 0:00:46] [#] White has an edge.} Nf6 $146 {[%emt 0:01:43]} ({Predecessor:} 8... Bg6 9. Bg2 Nf6 10. a3 c6 11. Nxg6 hxg6 12. e4 a6 13. e5 Nfd7 14. Ne2 c5 {1-0 (38) Fedoseev,V (2704)-Indjic,A (2605) Chess.com INT 2022}) 9. Nxh5 {[%emt 0:04:01]} Nxh5 {[%emt 0:00:10]} 10. e4 {[%emt 0:04:39]} Nf6 {[%emt 0:00:22]} 11. exd5 {[%emt 0:01:07]} (11. Bd3 {is more complex.} Bb4 12. e5 Ne4 13. Qg4) 11... exd5 {[%emt 0:01:51]} 12. Bd3 {[%emt 0:03:13]} Be7 {[%emt 0:08:24][%cal Bf8e7,Be7f6,Bf6g7][%mdl 32]} 13. Qf3 {[%emt 0:05:27]} O-O {[%emt 0:00:38]} 14. O-O {[%emt 0:16:57]} Re8 {[%emt 0:06:16]} 15. Re1 {[%emt 0:04:35]} c6 {[%emt 0:07:07]} 16. Re2 {[%emt 0:06:14]} Nfd7 {[%emt 0:08:26]} 17. Bd2 {[%emt 0:08:32]} (17. Bxh7+ $2 Kxh7 18. Qxf7 Bf6 $19) 17... Bf6 {[%emt 0:00:59]} 18. Rae1 {[%emt 0:00:29]} Rxe2 {[%emt 0:00:16]} 19. Nxe2 {[%emt 0:00:07]} Nc4 {[%emt 0:05:29][%cal Bb6c4,Bc4d6,Bd6e4,Be4g5][%mdl 32]} 20. Bc3 {[%emt 0:00:41]} Nd6 {[%emt 0:09:43]} 21. Nf4 {[%emt 0:01:49]} g6 {[%emt 0:01:07]} 22. h4 {[%emt 0:01:42]} Bg7 {[%emt 0:00:42]} 23. Kg2 {[%emt 0:12:30]} Nf6 {[%emt 0:01:45]} 24. h5 {[%emt 0:02:14]} Nde4 {[%emt 0:01:42]} 25. hxg6 {[%emt 0:00:35]} hxg6 {[%emt 0:00:10]} 26. Rh1 {[%emt 0:01:28]} Qd7 {[%emt 0:00:25]} 27. Be1 {[%emt 0:01:18]} Re8 {[%emt 0:00:50]} 28. c3 {[%emt 0:02:18]} Ng5 {[%emt 0:06:35] Pair of Knights!} 29. Qd1 {[%emt 0:00:09]} Nfe4 {[%emt 0:01:23]} 30. f3 {[%emt 0:02:18]} Nd6 {[%emt 0:00:19]} 31. Bf2 {[%emt 0:00:34]} Ne6 {[%emt 0:06:48]} 32. Qc1 {[%emt 0:02:31]} Nxf4+ {[%emt 0:03:24]} 33. Qxf4 {[%emt 0:00:08]} Re6 {[%emt 0:05:51]} 34. Re1 {[%emt 0:01:51]} Rxe1 {[%emt 0:02:13]} 35. Bxe1 {[%emt 0:00:03]} Qe6 {[%emt 0:02:18]} 36. Bf2 {[%emt 0:00:26]} Bf6 {[%emt 0:03:37]} 37. g4 {[%emt 0:00:42]} Kg7 {[%emt 0:00:27]} 38. Qc1 {[%emt 0:02:40]} Be7 {[%emt 0:04:16]} 39. Qf4 {[%emt 0:02:21]} Bf6 {[%emt 0:04:24]} 40. b3 {[%emt 0:00:58]} a6 {[%emt 0:00:47]} 41. Bg3 {[%emt 0:03:43]} Nb5 {[%emt 0:04:42]} 42. Qc1 {[%emt 0:26:24]} Be7 {[%emt 0:09:12]} 43. a4 {[%emt 0:01:22]} Nd6 {[%emt 0:00:06]} 44. c4 {[%emt 0:03:36]} Ne8 {[%emt 0:05:42]} 45. c5 {[%emt 0:03:49]} Bd8 {[%emt 0:00:46]} 46. b4 {[%emt 0:00:36]} Bc7 {[%emt 0:00:40]} 47. Bf2 {[%emt 0:00:34]} Nf6 {[%emt 0:01:16]} 48. Qe3 {[%emt 0:02:07]} Qd7 {[%emt 0:02:25]} 49. Qe2 {[%emt 0:00:37]} Nh7 {[%emt 0:01:29]} 50. Be3 {[%emt 0:01:33]} Nf8 {[%emt 0:06:22]} 51. f4 {[%emt 0:00:39]} Ne6 {[%emt 0:00:14]} 52. Qf3 {[%emt 0:00:24]} Qe7 {[%emt 0:00:13]} 53. g5 {[%emt 0:04:12]} Bb8 {[%emt 0:05:43]} 54. b5 {[%emt 0:03:20]} axb5 {[%emt 0:00:11]} 55. axb5 {[%emt 0:00:01]} cxb5 {[%emt 0:00:52]} 56. Bxb5 {[%emt 0:00:58]} Qc7 {[%emt 0:02:03][%cal Re6f4]} 57. f5 {[%emt 0:00:19]} gxf5 {[%emt 0:01:46] With the idea ...Qh2+.} 58. Bd3 {[%emt 0:03:19]} Qh2+ {[%emt 0:07:56]} 59. Kf1 {[%emt 0:00:01]} f4 {[%emt 0:00:42]} 60. Bf2 {[%emt 0:00:01]} Nxg5 {[%emt 0:01:14]} 61. Qxd5 {[%emt 0:01:47]} Qh3+ {[%emt 0:00:43]} 62. Ke1 {[%emt 0:00:14]} ({Don't go for} 62. Ke2 $2 Qh5+ 63. Kd2 Nf3+ 64. Qxf3 Qxf3 $19) 62... Qxd3 {[%emt 0:04:37]} 63. Qxg5+ $11 {[%emt 0:00:01][%mdl 4096] Endgame KQB-KQB} Qg6 {[%emt 0:00:02]} 64. Bh4 {[%emt 0:01:44]} Qxg5 {[%emt 0:00:58]} 65. Bxg5 {[%emt 0:00:02] KB-KB} Kg6 {[%emt 0:00:14]} 66. Bd8 {[%emt 0:00:27]} (66. Be7 $11) 66... Kf5 $15 {[%emt 0:00:46] [#] Strongly threatening ...Ke4.} 67. d5 $1 {[%emt 0:00:18]} Ke5 {[%emt 0:01:02]} (67... Ba7 $15 68. c6 bxc6 69. dxc6 Ke6) 68. c6 {[%emt 0:00:21]} (68. d6 $11 Ke6 69. Bh4) 68... bxc6 {[%emt 0:00:42]} ({Reject} 68... Kxd5 69. c7 Bxc7 70. Bxc7 $11) 69. dxc6 {[%emt 0:00:01]} Kd6 {[%emt 0:00:09] Prevents c7.} 70. Kf2 {[%emt 0:00:15]} Kxc6 {[%emt 0:00:08] Weighted Error Value: White=0.05 (flawless) /Black=0.05 (flawless)} 1/2-1/2

[Event "German Bundesliga 2022-23"]
[Site "Germany"]
[Date "2022.11.25"]
[Round "7.5"]
[White "Jovanovic, Zoran"]
[Black "Hracek, Zbynek"]
[Result "1/2-1/2"]
[ECO "C47"]
[WhiteElo "2513"]
[BlackElo "2548"]
[Annotator "TA"]
[PlyCount "48"]
[EventDate "2022.10.21"]
[EventType "team-tourn"]
[EventCountry "GER"]
[SourceTitle "playchess.com"]
[Source "ChessBase"]
[SourceQuality "1"]
[TimeControl "40/6000+30:3000+30"]

{[%evp 16,48,8,0,0,9,8,6,6,6,6,6,6,6,6,6,6,3,3,6,7,-1,0,0,0,0,0,0,0,0,0,0,0,0,488]} 1. e4 {[%emt 0:00:03]} e5 {[%emt 0:00:06]} 2. Nf3 {[%emt 0:00:14]} Nc6 {[%emt 0:00:04]} 3. Nc3 {[%emt 0:01:37]} Nf6 {[%emt 0:00:45]} 4. d4 {[%emt 0:00:10]} exd4 {[%emt 0:00:04]} 5. Nxd4 {[%emt 0:00:06]} Bb4 {[%emt 0:02:06]} 6. Nxc6 {[%emt 0:05:10]} bxc6 {[%emt 0:01:25]} 7. Bd3 {[%emt 0:00:10][%cal Bf1d3,Bd3e4,Be4c6][%mdl 32]} d5 {[%emt 0:03:54]} 8. Bd2 {[%emt 0:07:12]} O-O {[%emt 0:10:27]} 9. O-O {[%emt 0:06:33] The position is equal.} Bxc3 {[%emt 0:04:11] C47: Scotch Four Knights and Four Knights with 4 g3.} (9... Bd6 {looks sharper.} 10. Bg5 h6 11. Bh4 Rb8) 10. Bxc3 {[%emt 0:00:24]} dxe4 $1 {[%emt 0:00:09][%mdl 4] is currently scoring better than 10...Nxe4.} 11. Bxf6 {[%emt 0:06:26][%mdl 64] [#] Remove Defender} Qxf6 {[%emt 0:00:18]} 12. Bxe4 {[%emt 0:00:03]} Qxb2 {[%emt 0:05:14]} 13. Bxc6 {[%emt 0:09:00]} Rb8 {[%emt 0:00:23]} 14. Rb1 {[%emt 0:00:25]} Qxb1 {[%emt 0:00:05]} 15. Qxb1 {[%emt 0:00:05]} Rxb1 {[%emt 0:00:10]} 16. Rxb1 $11 {[%emt 0:00:21][%mdl 4096] Endgame KRB-KRB} Rd8 {[%emt 0:10:39]} 17. Bf3 {[%emt 0:03:47]} Kf8 {[%emt 0:05:06] [#]} 18. h4 $1 $146 {[%emt 0:05:02][%mdl 8] A relevant novelty.} ({Predecessor:} 18. Rb8 Re8 19. h4 Ba6 20. Rb4 Re1+ 21. Kh2 Re5 22. Ra4 Be2 23. Kg3 Bxf3 24. Kxf3 {½-½ (34) Liang,A (2608)-So,W (2774) Saint Louis 2022}) 18... Ke7 {[%emt 0:05:09]} 19. Rb8 {[%emt 0:04:33]} Bf5 {[%emt 0:13:35]} 20. Rb5 {[%emt 0:06:20]} Bxc2 {[%emt 0:02:10]} 21. Re5+ {[%emt 0:00:10]} Kf6 {[%emt 0:02:07]} 22. Rc5 {[%emt 0:00:08][%csl LRc2,LRc7]} Bb1 {[%emt 0:00:03]} 23. Rxc7 {[%emt 0:00:09]} Bxa2 {[%emt 0:00:04]} 24. Rxa7 {[%emt 0:00:07]} Ke5 $2 {[%emt 0:00:12][%mdl 40960] Weighted Error Value: White=0.01 (flawless) /Black=0.00 (flawless) . An unexpected result.} 1/2-1/2

[Event "German Bundesliga 2022-23"]
[Site "Germany"]
[Date "2022.11.25"]
[Round "7.6"]
[White "Babula, Vlastimil"]
[Black "Kovacevic, Aleksandar"]
[Result "0-1"]
[ECO "D38"]
[WhiteElo "2551"]
[BlackElo "2470"]
[Annotator "TA"]
[PlyCount "58"]
[EventDate "2022.10.21"]
[EventType "team-tourn"]
[EventCountry "GER"]
[SourceTitle "playchess.com"]
[Source "ChessBase"]
[SourceQuality "1"]
[TimeControl "40/6000+30:3000+30"]

{[%evp 11,57,14,22,18,18,16,18,18,18,6,2,-18,-10,-15,-9,-82,-22,-68,-82,-72,-41,-50,-72,-114,-124,-122,-114,-115,-70,-56,-29,-175,-26,-39,17,18,18,17,373,312,352,95,406,29,22,-29998,-29999,-29999]} 1. d4 {[%emt 0:00:06]} Nf6 {[%emt 0:00:13]} 2. c4 {[%emt 0:00:13]} e6 {[%emt 0:00:09]} 3. Nf3 {[%emt 0:00:21]} d5 {[%emt 0:00:32]} 4. Nc3 {[%emt 0:00:40]} Bb4 {[%emt 0:00:23]} 5. Qa4+ {[%emt 0:10:44]} Nc6 {[%emt 0:00:07]} 6. e3 {[%emt 0:00:28]} O-O {[%emt 0:00:32]} 7. Qc2 {[%emt 0:01:03] D38: Queen's Gambit Declined: Ragozin Defence (4 Nf3 Bb4).} Re8 {[%emt 0:01:49]} 8. Bd2 {[%emt 0:06:02]} a6 {[%emt 0:00:47]} 9. a3 {[%emt 0:04:25] The position is equal.} Bd6 {[%emt 0:00:46]} 10. h3 {[%emt 0:02:50]} h6 {[%emt 0:02:18]} 11. cxd5 {[%emt 0:08:33]} exd5 {[%emt 0:00:17]} 12. Bd3 {[%emt 0:02:57]} Be6 {[%emt 0:05:16] [#]} 13. O-O-O $146 {[%emt 0:11:35]} (13. Rd1 $11 {remains equal.}) ({Predecessor:} 13. g4 Nd7 14. Rg1 Qf6 15. Be2 Qg6 16. Bd3 Qf6 17. Qd1 b5 18. h4 b4 19. g5 hxg5 20. hxg5 {1-0 (38) Gupta,A (2634)-Libiszewski,F (2547) London 2016}) 13... Bd7 {[%emt 0:03:09]} ({Black should try} 13... b5 $17) 14. g4 {[%emt 0:18:13]} (14. e4 $11 {was preferrable.}) 14... b5 $1 $15 {[%emt 0:01:32]} 15. g5 {[%emt 0:00:40] Prevents b4.} hxg5 {[%emt 0:01:31]} 16. Nxg5 {[%emt 0:00:11]} b4 {[%emt 0:01:26][%cal Ob4a3] Strongly threatening ...bxa3!} 17. axb4 {[%emt 0:02:38]} Nxb4 {[%emt 0:00:51]} (17... Bxb4 18. h4 $14) 18. Qb1 {[%emt 0:00:39]} Nxd3+ {[%emt 0:11:36]} 19. Qxd3 {[%emt 0:00:04][%cal Oc3d5]} Qc8 {[%emt 0:00:23] Hoping for ...Bf5.} 20. Nxd5 $1 {[%emt 0:03:55]} Nxd5 {[%emt 0:11:35]} (20... Bf5 $5 {[%cal Rf5d3]} 21. Nxf6+ gxf6 $17) 21. Qh7+ {[%emt 0:00:13]} Kf8 {[%emt 0:00:04]} 22. e4 $1 {[%emt 0:01:11] [#]} (22. Qh8+ $2 Ke7 23. Qxg7 Qb7 24. Qxf7+ (24. Nxf7 $2 Qc6+ 25. Bc3 Rg8 $19) 24... Kd8 $19) 22... Nf4 {[%emt 0:26:32] Against Qh5} (22... Qb7 $1 $15 23. Qh5 (23. exd5 $2 Rab8 $19) (23. Qh8+ $2 Ke7 $19) 23... Be6 $1 24. exd5 (24. Nxe6+ Rxe6 25. exd5 Rb8 $11) 24... Rab8 $1 25. Nxe6+ fxe6) 23. Qh8+ $11 {[%emt 0:05:47]} Ke7 {[%emt 0:00:01]} 24. Qxg7 {[%emt 0:00:08]} Ne2+ $2 {[%emt 0:04:43][%mdl 8192]} (24... Nd3+ $1 $11 25. Kc2 Qb7 26. Qxf7+ (26. Kxd3 Qb3+ 27. Bc3 Rg8 $15) (26. Bc3 Nb4+ 27. Kb1 a5 $17) 26... Kd8 27. Kxd3 Kc8) 25. Kb1 $18 {[%emt 0:01:04]} Be6 {[%emt 0:09:36] [#] Threatens to win with ...Rg8.} 26. e5 $2 {[%emt 0:11:18]} (26. Nxf7 $1 $18 {[%mdl 512] is the precise move to win. White threatens Bg5+ and mate.} Rg8 (26... Nc3+ 27. bxc3) 27. Bg5+ Kd7 28. Ne5+ Ke8 29. Qh6) 26... Rb8 $2 {[%emt 0:03:23][%mdl 8192] [#]} 27. exd6+ $2 {[%emt 0:04:37]} ({White has to play} 27. Nxf7 $1 $18 Rg8 28. exd6+ (28. Nxd6+ $2 {perishes.} Rxg7 29. Nxc8+ Bxc8 $19) (28. Qf6+ Ke8 $19) 28... Kd7 29. Qf6) 27... cxd6 $11 {[%emt 0:00:38][%cal Oc8c2] ( -> ...Qc2+!). The board is on fire.} 28. Nxf7 $2 {[%emt 0:01:17][%mdl 8192] [#]} Qc2+ $3 {[%emt 0:01:43][%mdl 576] Decoy} 29. Kxc2 {[%emt 0:01:13]} Bf5# {[%emt 0:00:05] Weighted Error Value: White=0.73/Black=0.50} 0-1

[Event "German Bundesliga 2022-23"]
[Site "Germany"]
[Date "2022.10.21"]
[Round "7.6"]
[White "Costa, Leonardo"]
[Black "Popovic, Dusan"]
[Result "1/2-1/2"]
[ECO "B92"]
[WhiteElo "2350"]
[BlackElo "2486"]
[Annotator "TA"]
[PlyCount "81"]
[EventDate "2022.10.21"]
[EventType "team-tourn"]
[EventCountry "GER"]
[SourceTitle "playchess.com"]
[Source "ChessBase"]
[SourceQuality "1"]
[TimeControl "40/6000+30:3000+30"]

{[%evp 15,81,6,14,1,7,9,0,0,21,6,8,3,0,0,0,0,0,0,-7,-18,22,25,30,25,25,32,118,116,112,123,120,110,118,124,125,127,106,97,104,0,114,0,115,108,110,0,0,0,0,0,0,0,0,0,0,0,0,0,0,0,0,0,0,0,0,0,0,0]} 1. e4 {[%emt 0:00:59]} c5 {[%emt 0:00:06]} 2. Nf3 {[%emt 0:00:09]} d6 {[%emt 0:00:35]} 3. d4 {[%emt 0:00:05]} cxd4 {[%emt 0:00:06]} 4. Nxd4 {[%emt 0:00:04]} Nf6 {[%emt 0:00:07]} 5. Nc3 {[%emt 0:00:04]} a6 {[%emt 0:00:04]} 6. Be2 {[%emt 0:01:24]} e5 {[%emt 0:00:40]} 7. Nb3 {[%emt 0:00:04]} Be7 {[%emt 0:00:45]} 8. O-O {[%emt 0:00:32]} O-O {[%emt 0:01:09]} 9. Bf3 {[%emt 0:04:10] B92: Sicilian Najdorf: 6 Be2.} Be6 {[%emt 0:01:25]} 10. Re1 {[%emt 0:01:05]} Nbd7 {[%emt 0:01:20]} 11. a4 {[%emt 0:02:51][%cal Ba2a4,Ba4a5][%mdl 32]} Qb8 {[%emt 0:01:22]} 12. Be3 {[%emt 0:15:35]} Rc8 {[%emt 0:04:18] [#]} 13. h3 $146 {[%emt 0:11:45]} ({Predecessor:} 13. a5 Bd8 14. Qd2 b5 15. axb6 Bxb3 16. cxb3 Bxb6 17. Na4 Bc5 18. Nxc5 Nxc5 19. Bxc5 Rxc5 {½-½ (42) Lagno,K (2530)-Shankland,S (2674) Caleta 2017}) 13... Bd8 {[%emt 0:08:22]} 14. Qe2 {[%emt 0:14:28]} Bb6 {[%emt 0:32:06]} 15. Red1 {[%emt 0:08:03]} Qc7 {[%emt 0:10:02]} 16. a5 {[%emt 0:03:29]} Bxe3 {[%emt 0:04:48]} 17. Qxe3 {[%emt 0:00:29]} Bxb3 {[%emt 0:12:42]} 18. cxb3 {[%emt 0:00:07][%cal Bc2b3,Bb3b4][%mdl 32]} Nc5 {[%emt 0:00:05]} 19. Nd5 {[%emt 0:15:58]} Nxd5 {[%emt 0:01:13]} 20. Rxd5 {[%emt 0:00:04]} b5 {[%emt 0:05:44]} ({Black should try} 20... Qe7 $14) 21. Bg4 $16 {[%emt 0:07:48]} Rd8 {[%emt 0:07:10]} 22. b4 {[%emt 0:00:58]} Ne6 {[%emt 0:00:20]} 23. Rc1 {[%emt 0:01:02]} Qb7 {[%emt 0:03:54]} 24. Bxe6 {[%emt 0:09:28] White is much more active.} fxe6 {[%emt 0:00:06]} 25. Rd3 {[%emt 0:01:23]} h6 {[%emt 0:06:19]} 26. Rcd1 {[%emt 0:07:27]} Qc6 {[%emt 0:01:51]} 27. Rc1 {[%emt 0:00:04]} Qb7 {[%emt 0:00:35]} 28. Rcd1 {[%emt 0:00:42]} Qc6 {[%emt 0:00:05]} 29. Qb6 {[%emt 0:00:08]} Rac8 {[%emt 0:01:34]} 30. Rxd6 {[%emt 0:02:22]} ({Better is} 30. Rc3 $16 Qxb6 31. axb6) 30... Rxd6 $11 {[%emt 0:00:21] The position is equal.} 31. Rxd6 $16 {[%emt 0:00:03][%mdl 4096] Endgame KQR-KQR} Qc1+ {[%emt 0:01:03]} 32. Kh2 {[%emt 0:00:03] [#] Black must now prevent Rd3.} Qf4+ $1 {[%emt 0:00:09]} 33. g3 {[%emt 0:00:02]} Qxe4 {[%emt 0:01:15]} 34. Rd8+ {[%emt 0:03:55]} (34. Qxa6 $2 Rc1 $19) 34... Rxd8 {[%emt 0:00:06]} 35. Qxd8+ $11 {[%emt 0:00:02] KQ-KQ} Kh7 {[%emt 0:00:16]} 36. Qb6 {[%emt 0:01:04][%csl LRa6,LRe6]} Qd4 {[%emt 0:03:28]} 37. Kg2 {[%emt 0:00:29]} (37. Qxa6 Qxf2+ 38. Kh1 Qe1+ 39. Kh2 (39. Kg2 Qe4+ 40. Kh2 Qc2+ 41. Kg1 Qc1+ 42. Kg2 Qd2+ 43. Kf1 Qd3+ 44. Kf2 Qd2+ 45. Kf1 Qc1+ 46. Kg2 Qc2+ 47. Kg1 Qc1+ 48. Kg2 $17) 39... Qxb4 40. Qxe6 Qxb2+ 41. Kg1 Qc2 $17) 37... Qd5+ {[%emt 0:00:54]} 38. Kg1 {[%emt 0:00:09]} Qd1+ {[%emt 0:00:48]} 39. Kh2 {[%emt 0:00:42]} Qd4 {[%emt 0:00:15]} 40. b3 {[%emt 0:00:41]} ({But not} 40. Qxa6 Qxf2+ 41. Kh1 Qe1+ 42. Kh2 (42. Kg2 Qe4+ 43. Kh2 Qe2+ 44. Kg1 Qe3+ 45. Kh2 Qe2+ 46. Kh1 Qe1+ 47. Kh2 Qf2+ 48. Kh1 Qe1+ $17) 42... Qf2+ 43. Kh1 Qe1+ 44. Kg2 Qxb4 45. Qxe6 Qxb2+ 46. Kg1 Qd4+ 47. Kg2 Qe4+ 48. Kf2 Qc2+ 49. Kf3 Qd3+ 50. Kf2 b4 $17) 40... Qd2 {[%emt 0:01:43]} 41. Kg1 {[%emt 0:05:34] Weighted Error Value: White=0.12 (very precise) /Black=0.07 (flawless)} 1/2-1/2

[Event "German Bundesliga 2022-23"]
[Site "Germany"]
[Date "2022.11.25"]
[Round "7.7"]
[White "Palac, Mladen"]
[Black "Pruijssers, Roeland"]
[Result "1/2-1/2"]
[ECO "B04"]
[WhiteElo "2509"]
[BlackElo "2547"]
[Annotator "TA"]
[PlyCount "41"]
[EventDate "2022.10.21"]
[EventType "team-tourn"]
[EventCountry "GER"]
[SourceTitle "playchess.com"]
[Source "ChessBase"]
[SourceQuality "1"]
[TimeControl "40/6000+30:3000+30"]

{[%evp 16,41,49,43,44,33,73,42,47,51,35,43,50,37,51,25,50,50,53,52,49,54,63,32,41,18,29,20]} 1. e4 {[%emt 0:00:05]} Nf6 {[%emt 0:00:07]} 2. e5 {[%emt 0:00:14]} Nd5 {[%emt 0:00:06]} 3. d4 {[%emt 0:00:14]} d6 {[%emt 0:00:07]} 4. Nf3 {[%emt 0:00:18]} dxe5 {[%emt 0:00:15]} 5. Nxe5 {[%emt 0:00:17]} g6 {[%emt 0:00:08]} 6. Bc4 {[%emt 0:02:45]} c6 {[%emt 0:01:00]} 7. O-O {[%emt 0:00:26]} Bg7 {[%emt 0:00:11]} 8. Re1 {[%emt 0:04:18]} O-O {[%emt 0:01:06] 8...Nd7 is not played anymore.} 9. Bb3 {[%emt 0:01:59]} Nd7 {[%emt 0:00:43] is the legacy move (9...Be6). B04: Alekhine's Defence: 4 Nf3.} 10. Nf3 {[%emt 0:00:44]} b5 {[%emt 0:13:27]} 11. Bxd5 {[%emt 0:19:13]} (11. a4 $5 {[%cal Ra4b5]}) 11... cxd5 {[%emt 0:00:00] White is slightly better.} 12. Nc3 {[%emt 0:00:04][%csl LRb5,LRd5]} a6 {[%emt 0:00:00]} 13. Nxd5 {[%emt 0:08:18][%cal Bc3d5,Bd5b4,Bb4d3,Bd3c5][%mdl 32]} e6 {[%emt 0:00:00] [#]} 14. Nb4 $146 {[%emt 0:06:21]} ({Predecessor:} 14. Nc3 Bb7 15. Ne4 Qc7 16. Bg5 Rac8 17. c3 f5 18. Ned2 Rfe8 19. Bh4 h6 20. h3 {1-0 (40) Kosten,A (2515)-Pytel,K (2410) Aix les Bains 1991}) 14... Bb7 {[%emt 0:00:00]} 15. Be3 {[%emt 0:05:18]} e5 {[%emt 0:00:00]} 16. Nxe5 {[%emt 0:02:58]} Nxe5 {[%emt 0:00:00]} 17. dxe5 {[%emt 0:00:09]} Bxe5 {[%emt 0:00:00]} 18. Qxd8 {[%emt 0:06:38]} Rfxd8 {[%emt 0:00:00]} 19. Nd3 {[%emt 0:00:31]} Bg7 {[%emt 0:16:01]} 20. Nc5 {[%emt 0:05:35] Inhibits Be4.} Bc6 {[%emt 0:11:23] This pair of bishops is nice.} 21. c3 {[%emt 0:03:56] Weighted Error Value: White=0.09 (flawless) /Black=0.07 (flawless)} 1/2-1/2